bitfinex-derivatives/quotes_SOLF0:USTF0_20241021
["timestamp","ask_amount","ask_price","bid_price","bid_amount"]
[1729500709086,1.2064,167.74,167.59,4.78]
[1729500709291,4.78,167.73,167.59,4.78]
[1729500709999,4.78,167.73,167.64,2.9836]
[1729500710792,4.78,167.73,167.64,4.2765]
[1729500711400,4.78,167.72,167.65,2.9832]
[1729500711596,4.78,167.72,167.65,4.2755]
[1729500712402,4.78,167.72,167.65,1.2923]
[1729500714705,2.94374511,167.71,167.65,1.2923]
[1729500715306,4.78,167.72,167.65,1.2923]
[1729500716206,4.78,167.72,167.65,2.5188]
[1729500717003,1.2778,167.78,167.65,2.5188]
[1729500717200,4.68,167.77,167.65,2.5188]
[1729500721016,1.2065,167.76,167.65,2.5188]
[1729500722812,1.2065,167.76,167.65,1.2923]
[1729500723017,1.2065,167.76,167.64,1.2929]
[1729500730733,4.68,167.75,167.64,1.2929]
[1729500731221,4.68,167.75,167.65,2.5522]
[1729500732730,4.68,167.74,167.65,2.5522]
[1729500733223,1.2778,167.78,167.65,2.5522]
[1729500733523,4.68,167.77,167.65,2.5522]
[1729500734620,3.02914896,167.8,167.65,2.5522]
[1729500734822,4.68,167.81,167.65,2.5522]
[1729500735322,2.92196335,167.8,167.65,2.5522]
[1729500735522,2.92196335,167.8,167.66,4.68]
[1729500735721,2.92196335,167.8,167.66,7.61599546]
[1729500736017,22.57,167.81,167.65,2.5522]
[1729500736420,1.2063,167.8,167.65,2.5522]
[1729500736618,17.89,167.79,167.64,1.2929]
[1729500737315,20.86109645,167.79,167.64,1.2929]
[1729500737721,2.97109645,167.79,167.64,1.2929]
[1729500737922,19.0963,167.8,167.64,1.2929]
[1729500738117,22.13429017,167.8,167.64,1.2929]
[1729500741128,17.89,167.77,167.64,1.2929]
[1729500741323,5.9596,167.76,167.64,1.2929]
[1729500741732,1.236,167.75,167.64,1.2929]
[1729500742627,1.236,167.75,167.58,2.5376]
[1729500742821,1.236,167.75,167.58,3.8628]
[1729500746434,1.236,167.75,167.58,2.6156]
[1729500746930,17.89,167.74,167.58,2.6156]
[1729500748024,19.126,167.75,167.58,2.6156]
[1729500754538,17.89,167.73,167.58,2.6156]
[1729500755237,1.2062,167.72,167.58,2.6156]
[1729500760933,1.2062,167.72,167.58,1.3252]
[1729500767737,17.89,167.7,167.58,1.3252]
[1729500767941,1.233,167.69,167.58,1.3252]
[1729500768434,1.2361,167.68,167.58,1.3252]
[1729500768645,4.6,167.67,167.58,1.3252]
[1729500771044,22.49,167.67,167.58,1.3252]
[1729500771239,4.6,167.67,167.58,1.3252]
[1729500771441,4.6,167.66,167.58,1.3252]
[1729500771835,4.6,167.65,167.58,1.3252]
[1729500778345,4.56,167.64,167.58,1.3252]
[1729500780547,4.56,167.65,167.58,1.3252]
[1729500782852,4.56,167.66,167.58,1.3252]
[1729500783553,7.50317895,167.66,167.58,1.3252]
[1729500784359,4.56,167.66,167.58,1.3252]
[1729500785259,2.9908032,167.65,167.58,1.3252]
[1729500785651,4.56,167.66,167.58,1.3252]
[1729500786053,3.01350606,167.65,167.58,1.3252]
[1729500786360,4.56,167.66,167.58,1.3252]
[1729500786753,7.52302206,167.66,167.58,1.3252]
[1729500788051,4.56,167.65,167.58,1.3252]
[1729500792656,2.6199,167.75,167.58,5.8852]
[1729500792856,4.56,167.74,167.58,8.94691613]
[1729500793053,2.6199,167.75,167.58,8.94691613]
[1729500793263,4.56,167.74,167.58,8.94691613]
[1729500793962,2.6199,167.75,167.58,8.94691613]
[1729500794164,4.56,167.73,167.58,8.94691613]
[1729500795460,22.47,167.73,167.58,5.8852]
[1729500795855,22.47,167.73,167.58,1.3252]
[1729500797762,22.47,167.73,167.55,4.56]
[1729500798156,22.47,167.73,167.54,2.5597]
[1729500798459,54.13998861,167.72,167.54,2.5597]
[1729500798762,17.91,167.71,167.54,2.5597]
[1729500798963,20.83547822,167.71,167.54,2.5597]
[1729500801568,17.91,167.7,167.54,2.5597]
[1729500801762,4.56,167.69,167.54,2.5597]
[1729500801962,5.7654,167.69,167.54,2.5597]
[1729500802265,2.584,167.68,167.54,2.5597]
[1729500809875,4.56,167.67,167.54,2.5597]
[1729500810876,4.56,167.66,167.54,2.5597]
[1729500815073,4.56,167.65,167.54,2.5597]
[1729500817877,22.47,167.65,167.44,4.56]
[1729500818077,22.47,167.65,167.45,7.35961891]
[1729500818283,22.47,167.65,167.45,1.3054]
[1729500818476,22.47,167.65,167.46,4.56]
[1729500819985,22.47,167.65,167.45,1.3054]
[1729500820285,22.47,167.65,167.45,5.8654]
[1729500824078,2.584,167.68,167.45,5.8654]
[1729500824279,17.91,167.66,167.45,5.8654]
[1729500824885,17.91,167.66,167.39,559.0]
[1729500825084,17.91,167.66,167.1,595.23428398]
[1729500825085,17.91,167.49,167.12,2.5227]
[1729500825387,70.4,167.49,167.13,86.08734485]
[1729500825584,73.3438698,167.49,167.14,15.68734485]
[1729500825774,73.3438698,167.49,167.15,11.79661977]
[1729500825775,11.85705706,167.48,167.15,11.79661977]
[1729500825982,14.88581457,167.48,167.16,10.41716145]
[1729500826177,11.85705706,167.48,167.14,4.53716145]
[1729500826387,23.79,167.47,167.14,8.80384348]
[1729500826575,17.91,167.45,167.14,8.80384348]
[1729500826777,17.91,167.43,167.14,2.92384348]
[1729500826983,17.91,167.41,167.12,8.4027]
[1729500827276,5.88,167.4,167.12,5.45833049]
[1729500827482,17.91,167.43,167.13,5.88]
[1729500827692,5.88,167.42,167.14,64.54]
[1729500828077,115.98190119,167.51,167.14,64.54]
[1729500828078,17.92,167.67,167.15,22.42956531]
[1729500828284,17.92,167.6,167.16,88.33]
[1729500828586,64.35637881,167.59,167.16,321.0]
[1729500828781,35.83,167.57,167.12,2.5227]
[1729500828985,269.61155233,167.58,167.12,2.5227]
[1729500828986,35.83,167.55,167.12,2.5227]
[1729500829291,35.83,167.53,167.12,9.2427]
[1729500829487,23.87,167.45,167.12,12.16395923]
[1729500829692,17.91,167.43,167.12,12.16395923]
[1729500829901,17.91,167.41,167.12,12.16395923]
[1729500830094,17.91,167.41,167.12,5.44395923]
[1729500830894,1.0,167.4,167.12,5.44395923]
[1729500831104,17.91,167.38,167.12,5.44395923]
[1729500831894,17.91,167.38,167.12,12.16395923]
[1729500831895,1.0,167.37,167.12,12.16395923]
[1729500832594,17.91,167.35,167.12,12.16395923]
[1729500833607,17.91,167.34,167.12,12.16395923]
[1729500833899,6.72,167.33,167.12,12.16395923]
[1729500834102,9.70059048,167.33,167.12,12.16395923]
[1729500835301,20.89059048,167.33,167.12,2.5227]
[1729500835504,6.72,167.32,167.12,5.56859387]
[1729500835801,6.72,167.31,167.12,2.5227]
[1729500836002,24.63,167.31,167.12,5.55930761]
[1729500837106,82.51,167.3,167.12,2.5227]
[1729500837601,64.6,167.3,167.12,2.5227]
[1729500837801,6.74,167.29,167.12,2.5227]
[1729500837996,17.91,167.28,166.85,17.91]
[1729500838199,17.91,167.26,167.01,1.2269]
[1729500838498,3.06356102,167.29,167.01,4.21707693]
[1729500838499,17.91,167.24,167.01,4.21707693]
[1729500838701,17.91,167.24,167.01,1.2269]
[1729500838893,7.74,167.23,167.01,1.2269]
[1729500839099,3.06056575,167.29,167.02,7.74]
[1729500839302,7.74,167.28,167.03,7.74]
[1729500839495,10.68854269,167.28,167.03,7.74]
[1729500839701,2.94854269,167.28,167.03,10.79757048]
[1729500839902,7.74,167.28,167.03,10.79757048]
[1729500840302,82.53,167.34,167.03,10.79757048]
[1729500840506,3.05805315,167.3,167.03,10.79757048]
[1729500841002,7.74,167.29,167.03,10.79757048]
[1729500841799,17.91,167.31,167.03,10.79757048]
[1729500842203,3.02570231,167.34,167.03,10.79757048]
[1729500842408,7.74,167.33,167.1,2.9932]
[1729500842609,7.74,167.33,167.11,11.63]
[1729500842811,20.88657695,167.32,167.12,7.74]
[1729500843610,20.88657695,167.32,167.12,10.69927074]
[1729500844004,20.88657695,167.32,167.12,7.74]
[1729500844805,20.88657695,167.32,167.12,10.7106514]
[1729500848005,7.74,167.31,167.12,10.7106514]
[1729500848606,7.74,167.3,167.12,10.7106514]
[1729500850114,25.65,167.3,167.12,7.74]
[1729500850408,7.74,167.3,167.12,10.80158051]
[1729500851015,7.74,167.29,167.12,10.80158051]
[1729500851509,7.74,167.28,167.13,2.9926]
[1729500851710,7.74,167.29,167.12,10.80158051]
[1729500852216,7.74,167.29,167.12,13.79448051]
[1729500852405,7.74,167.31,167.12,10.80158051]
[1729500852915,64.64,167.35,167.12,10.80158051]
[1729500853116,7.74,167.31,167.12,10.80158051]
[1729500853312,116.0659302,167.39,167.17,2.9919]
[1729500853511,7.74,167.38,167.18,7.74]
[1729500853912,7.74,167.37,167.19,2.6306]
[1729500854113,116.0659302,167.39,167.19,2.6306]
[1729500854114,7.74,167.36,167.2,1.241]
[1729500854312,7.74,167.35,167.2,1.241]
[1729500854513,7.74,167.35,167.2,4.2323]
[1729500854712,7.74,167.36,167.2,4.2323]
[1729500855318,116.0659302,167.39,167.2,4.2323]
[1729500855618,116.0659302,167.39,167.2,1.241]
[1729500855816,7.74,167.38,167.2,1.241]
[1729500856414,116.0659302,167.39,167.21,2.9911]
[1729500856621,7.74,167.37,167.2,1.241]
[1729500856923,7.74,167.37,167.21,2.9911]
[1729500857122,7.74,167.37,167.21,6.01870509]
[1729500857822,64.66,167.4,167.23,2.9908]
[1729500858023,7.4,167.36,167.24,7.4]
[1729500858223,7.4,167.36,167.24,10.36832834]
[1729500858423,64.64,167.43,167.24,10.36832834]
[1729500858624,7.4,167.42,167.24,10.36832834]
[1729500859020,17.91,167.41,167.2,1.241]
[1729500860119,17.91,167.42,167.19,2.6306]
[1729500860324,17.91,167.4,167.19,2.6306]
[1729500861125,17.91,167.4,167.12,3.06158051]
[1729500861429,17.91,167.4,167.04,2.6004]
[1729500861630,1.0,167.39,167.04,2.6004]
[1729500862130,1.0,167.39,167.05,1.3375]
[1729500863628,17.91,167.37,167.05,1.3375]
[1729500864223,17.91,167.37,167.13,2.9926]
[1729500864429,17.91,167.35,167.14,11.1669]
[1729500864729,20.85470202,167.35,167.14,11.1669]
[1729500866725,20.85470202,167.35,167.14,3.7669]
[1729500867231,20.85470202,167.35,167.08,64.64]
[1729500867428,20.85470202,167.35,167.09,2.5179]
[1729500867630,20.85470202,167.35,167.09,9.9179]
[1729500867934,1.0,167.34,167.09,9.9179]
[1729500868731,17.91,167.33,167.09,9.9179]
[1729500869030,72.04998861,167.33,167.09,9.9179]
[1729500869224,17.91,167.33,167.09,9.9179]
[1729500869941,72.04998861,167.33,167.09,9.9179]
[1729500870422,72.04998861,167.33,167.09,2.5179]
[1729500870629,54.13998861,167.32,167.09,2.5179]
[1729500870827,89.97,167.31,167.09,2.5179]
[1729500872824,144.10998861,167.31,167.09,2.5179]
[1729500873029,1.0,167.3,167.06,7.4]
[1729500873333,72.04998861,167.29,167.05,1.3488]
[1729500873737,17.91,167.27,167.05,1.3488]
[1729500873934,17.91,167.25,167.05,1.3488]
[1729500874632,20.85523123,167.25,167.05,1.3488]
[1729500875936,54.13998861,167.19,167.05,1.3488]
[1729500876123,7.4,167.18,167.05,1.3488]
[1729500880634,7.04,167.17,167.05,1.3488]
[1729500881235,7.04,167.17,167.06,7.04]
[1729500882839,7.04,167.17,167.05,1.3488]
[1729500884546,1.0,167.28,167.05,1.3488]
[1729500884743,82.59,167.33,167.05,1.3488]
[1729500885040,24.95,167.32,167.13,2.9926]
[1729500885234,24.95,167.32,167.14,1.3202]
[1729500885431,24.95,167.32,167.14,2.5496]
[1729500885943,7.04,167.32,167.14,2.5496]
[1729500887843,7.04,167.32,167.14,5.542]
[1729500888837,7.04,167.32,167.14,2.5496]
[1729500889842,7.04,167.32,167.14,5.5421]
[1729500890044,7.04,167.32,167.14,6.8896]
[1729500890646,7.04,167.32,167.14,3.8971]
[1729500891546,82.59,167.33,167.14,6.8895]
[1729500891747,6.7,167.32,167.14,6.8895]
[1729500894246,64.68,167.33,167.15,2.9922]
[1729500894550,6.7,167.32,167.14,3.8971]
[1729500894738,6.7,167.31,167.14,3.8971]
[1729500895649,6.7,167.31,167.17,2.9918]
[1729500895847,6.7,167.31,167.18,6.7]
[1729500896247,17.91,167.42,167.18,6.7]
[1729500896450,6.7,167.34,167.18,6.7]
[1729500896744,6.7,167.34,167.2,2.9914]
[1729500897052,6.7,167.34,167.21,1.3375]
[1729500897347,6.7,167.34,167.21,4.3287]
[1729500897549,6.7,167.34,167.21,1.3375]
[1729500897854,6.7,167.34,167.22,3.05485858]
[1729500898151,6.7,167.34,167.23,6.7]
[1729500898352,6.7,167.34,167.23,9.6907]
[1729500898543,6.7,167.36,167.24,3.05850137]
[1729500899439,9.69533146,167.36,167.24,3.05850137]
[1729500899851,6.7,167.36,167.24,3.05850137]
[1729500900252,9.72556919,167.36,167.24,3.05850137]
[1729500900553,6.7,167.36,167.24,3.05850137]
[1729500900753,9.64892703,167.36,167.24,3.05850137]
[1729500902352,9.64892703,167.36,167.23,6.7]
[1729500902552,6.7,167.36,167.23,6.7]
[1729500902749,9.65725137,167.36,167.23,9.64288125]
[1729500902955,82.57,167.42,167.23,9.64288125]
[1729500903154,24.61,167.41,167.23,9.64288125]
[1729500904155,64.66,167.42,167.23,9.64288125]
[1729500904458,6.7,167.41,167.26,2.9903]
[1729500904850,6.7,167.41,167.24,1.3204]
[1729500905051,64.66,167.42,167.27,2.99]
[1729500905254,64.66,167.42,167.28,8.0431]
[1729500905457,6.7,167.41,167.29,1.2694]
[1729500905752,6.7,167.43,167.29,1.2694]
[1729500905952,123.39031126,167.45,167.29,1.2694]
[1729500906168,6.7,167.48,167.29,1.2694]
[1729500906660,2.93337322,167.5,167.29,1.2694]
[1729500906959,64.64,167.51,167.29,1.2694]
[1729500907153,6.7,167.54,167.39,2.988]
[1729500907351,6.7,167.55,167.4,10.5683]
[1729500907555,9.64654347,167.55,167.41,6.7]
[1729500907855,6.7,167.55,167.41,9.6877]
[1729500908056,6.7,167.55,167.41,6.7]
[1729500909260,3.06501106,167.57,167.41,6.7]
[1729500909454,6.36,167.54,167.41,6.7]
[1729500910160,6.36,167.54,167.41,9.6877]
[1729500912562,6.36,167.54,167.41,6.7]
[1729500912864,6.36,167.54,167.42,2.9874]
[1729500913059,6.36,167.54,167.41,6.7]
[1729500913262,6.36,167.54,167.43,2.9873]
[1729500914058,6.36,167.57,167.44,2.987]
[1729500914462,2.91873039,167.6,167.45,2.9868]
[1729500914761,6.36,167.59,167.46,6.36]
[1729500914961,9.27663725,167.59,167.46,6.36]
[1729500915862,6.36,167.59,167.46,9.3468]
[1729500916263,6.36,167.59,167.46,6.36]
[1729500916460,6.36,167.59,167.47,2.9865]
[1729500916655,67.64518137,167.61,167.47,2.9865]
[1729500916854,6.36,167.6,167.47,2.9865]
[1729500917263,6.36,167.6,167.48,4.31053725]
[1729500917465,6.36,167.6,167.48,1.3329]
[1729500917662,24.27,167.6,167.26,282.7169]
[1729500917961,24.27,167.6,167.38,2.9882]
[1729500917962,27.24202091,167.6,167.38,2.9882]
[1729500918166,27.24202091,167.6,167.39,3.06171071]
[1729500919766,27.24202091,167.6,167.39,6.04971071]
[1729500920574,27.24202091,167.6,167.39,3.06171071]
[1729500922566,27.24202091,167.6,167.39,6.04971071]
[1729500923568,6.36,167.59,167.44,2.9871]
[1729500923763,6.36,167.59,167.45,2.5608]
[1729500924169,6.36,167.59,167.46,2.9868]
[1729500924474,6.36,167.59,167.45,3.808]
[1729500925068,2.97202091,167.6,167.45,3.808]
[1729500925374,64.62,167.61,167.45,3.808]
[1729500925375,6.36,167.58,167.45,3.808]
[1729500930775,6.36,167.57,167.45,3.808]
[1729500931587,6.36,167.57,167.45,2.5608]
[1729500932979,6.36,167.57,167.4,1.3022]
[1729500932980,6.36,167.57,167.41,2.9877]
[1729500933181,6.36,167.57,167.43,6.02]
[1729500935483,24.27,167.57,167.4,2.5352]
[1729500935789,24.27,167.57,167.35,6.02]
[1729500936288,24.27,167.57,167.32,1.2775]
[1729500936590,1.0,167.56,167.32,1.2775]
[1729500938696,17.91,167.54,167.32,1.2775]
[1729500939792,1.0,167.53,167.32,1.2775]
[1729500940684,1.0,167.53,167.26,2.98218576]
[1729500940892,1.0,167.53,167.24,6.02]
[1729500941090,1.0,167.53,167.25,6.02]
[1729500941286,1.0,167.53,167.29,2.9898]
[1729500941492,1.0,167.53,167.3,8.5554]
[1729500941891,1.0,167.53,167.3,9.7956]
[1729500943495,1.0,167.53,167.3,3.7756]
[1729500943694,17.91,167.51,167.3,3.7756]
[1729500943895,17.91,167.49,167.3,3.7756]
[1729500944196,17.91,167.47,167.3,3.7756]
[1729500945890,17.91,167.47,167.24,2.95177358]
[1729500946096,71.56319306,167.47,167.2,3.9535]
[1729500946289,71.56319306,167.47,167.2,6.98330659]
[1729500946290,1.0,167.46,167.2,6.98330659]
[1729500946495,17.91,167.44,167.2,6.98330659]
[1729500946687,17.91,167.44,167.13,114.08328515]
[1729500946892,17.91,167.44,167.14,9.895]
[1729500947092,1.0,167.43,167.15,6.04]
[1729500947298,1.0,167.43,167.17,2.992]
[1729500947496,1.0,167.43,167.15,6.04]
[1729500947691,1.0,167.43,167.18,2.9916]
[1729500948000,17.91,167.41,167.18,2.93467432]
[1729500948303,17.91,167.41,167.19,2.9915]
[1729500948494,20.90664918,167.41,167.2,6.04]
[1729500949892,20.90664918,167.41,167.19,9.10640833]
[1729500950095,20.90664918,167.41,167.19,6.04]
[1729500950487,20.90664918,167.41,167.2,2.98263651]
[1729500950691,6.04,167.4,167.19,6.04]
[1729500950897,6.04,167.4,167.2,2.98563052]
[1729500951094,23.95,167.4,167.21,2.9912]
[1729500951296,23.95,167.4,167.22,3.9145]
[1729500952095,23.95,167.4,167.1,64.6]
[1729500952294,23.95,167.4,167.14,5.6773]
[1729500952494,1.0,167.39,167.14,2.6849]
[1729500952895,1.0,167.39,167.15,2.9922]
[1729500953100,1.0,167.39,167.16,6.04]
[1729500953595,1.0,167.39,167.17,2.9918]
[1729500953793,1.0,167.39,167.18,2.96849622]
[1729500953997,1.0,167.39,167.17,2.9918]
[1729500954397,1.0,167.39,167.16,6.04]
[1729500954598,1.0,167.39,167.16,9.0321]
[1729500954802,1.0,167.39,167.16,2.9921]
[1729500955003,1.0,167.39,167.14,2.6849]
[1729500955004,1.0,167.39,167.17,6.04]
[1729500961502,1.0,167.39,167.17,9.032]
[1729500961709,17.91,167.37,167.18,3.00611083]
[1729500962106,17.91,167.37,167.19,1.2371]
[1729500962309,17.91,167.35,167.19,1.2371]
[1729500972720,17.91,167.35,167.14,2.6849]
[1729500973135,1.0,167.34,167.14,1.3617]
[1729500973419,17.91,167.32,167.14,1.3617]
[1729500973822,17.91,167.32,167.11,1.2391]
[1729500974022,1.0,167.31,167.11,1.2391]
[1729500974419,17.91,167.29,167.11,1.2391]
[1729500980831,1.0,167.28,167.11,1.2391]
[1729500983926,5.76,167.27,167.11,1.2391]
[1729500984725,1.0,167.28,167.11,1.2391]
[1729500985035,23.67,167.27,167.11,1.2391]
[1729500985532,23.67,167.27,167.07,1.248]
[1729500987831,1.0,167.26,167.07,1.248]
[1729500996050,1.0,167.26,167.07,4.2417]
[1729500996545,1.0,167.26,167.07,1.248]
[1729500997741,5.62,167.25,167.07,1.248]
[1729500997935,5.62,167.25,167.09,2.9934]
[1729500998134,5.62,167.25,167.07,1.248]
[1729500998339,1.0,167.26,167.07,1.248]
[1729500998539,5.62,167.25,167.07,1.248]
[1729500998740,64.7,167.29,167.07,1.248]
[1729500998946,5.62,167.28,167.07,1.248]
[1729500999143,5.62,167.28,167.13,2.9926]
[1729500999344,5.62,167.28,167.14,9.5168]
[1729501000638,5.62,167.28,167.14,12.5092]
[1729501002039,5.62,167.27,167.16,2.992]
[1729501002248,64.7,167.29,167.14,9.5168]
[1729501002443,5.62,167.28,167.14,9.5168]
[1729501002746,5.62,167.28,167.17,2.9919]
[1729501003142,5.62,167.28,167.14,9.5168]
[1729501003736,5.62,167.28,167.15,5.62]
[1729501004350,5.62,167.28,167.14,3.8968]
[1729501004648,5.62,167.28,167.15,5.62]
[1729501004848,5.62,167.28,167.15,8.6122]
[1729501005346,5.62,167.28,167.16,2.9921]
[1729501005649,5.62,167.28,167.15,5.62]
[1729501005948,5.62,167.28,167.17,2.9918]
[1729501006846,5.62,167.28,167.15,5.62]
[1729501008344,5.62,167.28,167.14,3.8968]
[1729501008648,23.53,167.28,167.14,3.8968]
[1729501015949,23.53,167.28,167.14,1.29]
[1729501017854,23.53,167.28,167.14,0.85]
[1729501018260,23.09,167.28,167.14,0.85]
[1729501019558,0.445,167.27,167.14,0.85]
[1729501022264,0.445,167.27,167.1,1.2663]
[1729501022965,0.445,167.27,167.1,2.5362]
[1729501024462,23.27,167.26,167.1,2.5362]
[1729501024958,23.27,167.26,166.99,64.68]
[1729501025160,23.27,167.26,167.05,2.9941]
[1729501025863,23.27,167.26,167.04,5.96359739]
[1729501026066,23.27,167.26,167.05,5.36]
[1729501026968,23.27,167.26,167.04,2.96949739]
[1729501027166,76.92319306,167.26,167.04,2.96949739]
[1729501027466,1.0,167.25,167.04,2.96949739]
[1729501027664,1.0,167.25,167.04,5.96369739]
[1729501028965,1.0,167.25,167.06,2.9939]
[1729501029664,1.0,167.25,167.05,2.97680292]
[1729501029968,1.0,167.25,167.04,2.9941]
[1729501030159,1.0,167.25,167.04,5.94852404]
[1729501031872,1.0,167.25,167.04,2.95432404]
[1729501032662,1.0,167.25,167.04,2.9942]
[1729501033671,1.0,167.25,167.03,12.1147]
[1729501035074,1.0,167.25,167.04,2.9943]
[1729501036974,1.0,167.25,167.04,2.9942]
[1729501037178,1.0,167.25,167.03,9.1202]
[1729501037977,1.0,167.25,167.03,12.1145]
[1729501038280,1.0,167.25,167.03,9.1202]
[1729501038581,1.0,167.25,167.04,2.9942]
[1729501039083,1.0,167.25,167.03,12.1146]
[1729501041977,1.0,167.25,167.04,2.9942]
[1729501042376,1.0,167.25,167.03,3.7602]
[1729501042577,17.91,167.24,167.03,3.7602]
[1729501043178,1.0,167.23,167.03,3.7602]
[1729501043380,17.91,167.21,167.03,3.7602]
[1729501043588,20.88716183,167.21,167.04,2.9942]
[1729501043985,20.88716183,167.21,167.03,3.7602]
[1729501044377,20.88716183,167.21,167.03,6.7546]
[1729501045595,20.88716183,167.21,167.04,2.9943]
[1729501048189,20.88716183,167.21,167.03,6.7546]
[1729501048390,0.4465,167.2,167.03,6.7546]
[1729501049287,0.4465,167.2,167.03,3.7602]
[1729501049483,0.4465,167.2,166.84,5.36]
[1729501049688,0.4465,167.2,166.92,1.2441]
[1729501049890,18.91,167.19,166.96,2.9956]
[1729501050084,17.91,167.17,166.97,1.3072]
[1729501050288,17.91,167.15,166.97,1.3072]
[1729501050485,17.91,167.13,166.97,1.3072]
[1729501051690,5.26,167.12,166.97,1.3072]
[1729501052389,5.26,167.12,167.02,2.9946]
[1729501052589,5.26,167.12,167.03,2.6539]
[1729501053195,5.26,167.12,167.04,1.2407]
[1729501053489,1.1686,167.12,167.04,1.2407]
[1729501053789,1.1692,167.13,167.04,4.23152865]
[1729501053996,64.72,167.21,167.05,5.26]
[1729501054194,5.26,167.2,167.05,8.32786242]
[1729501054389,5.26,167.2,167.05,5.26]
[1729501054591,3.02439979,167.21,167.05,5.26]
[1729501054801,5.26,167.2,167.05,8.22235314]
[1729501055292,5.26,167.2,167.09,2.9934]
[1729501055495,5.26,167.2,167.09,8.2534]
[1729501056593,5.26,167.2,167.09,5.26]
[1729501056794,5.26,167.2,167.1,2.9932]
[1729501056991,5.26,167.2,167.09,5.26]
[1729501057596,5.26,167.2,167.1,2.9931]
[1729501058391,3.06666346,167.21,167.1,2.9931]
[1729501058593,5.26,167.22,167.11,1.2891]
[1729501059095,5.26,167.22,167.12,2.6818]
[1729501059287,8.31111812,167.22,167.12,2.6818]
[1729501067798,8.31111812,167.22,167.11,1.2891]
[1729501068607,8.31111812,167.22,167.11,0.2891]
[1729501069000,7.31111812,167.22,167.11,0.2891]
[1729501069605,25.28111812,167.22,167.06,2.5265]
[1729501069810,1.3593,167.21,167.06,1.5265]
[1729501070307,1.5934,167.2,167.06,1.5265]
[1729501070703,5.26,167.19,167.06,1.5265]
[1729501070904,5.26,167.19,167.06,0.5265]
[1729501071513,4.26,167.19,167.06,0.5265]
[1729501072004,4.26,167.19,167.04,7.84505314]
[1729501072410,3.26,167.19,167.04,7.84505314]
[1729501073607,3.26,167.19,167.04,7.36505314]
[1729501073810,3.26,167.19,167.05,1.3382]
[1729501074111,2.78,167.19,167.05,1.3382]
[1729501074905,20.75,167.19,167.05,1.3382]
[1729501091825,20.75,167.19,167.03,1.3387]
[1729501095128,17.97,167.19,167.03,1.3387]
[1729501095325,5.04,167.18,167.03,1.3387]
[1729501095928,5.04,167.18,167.03,4.3332]
[1729501097522,23.01,167.18,167.01,1.3166]
[1729501097723,23.01,167.18,166.98,2.9953]
[1729501097922,23.01,167.18,166.96,1.3308]
[1729501097923,23.01,167.18,166.96,6.3708]
[1729501098130,23.01,167.18,166.96,9.31007298]
[1729501098332,23.01,167.18,166.96,1.3308]
[1729501098933,1.0,167.17,166.96,1.3308]
[1729501099732,1.0,167.17,166.92,2.9964]
[1729501099933,1.0,167.17,166.91,2.568]